Cogmind - Beta 16 @@@ ROGUE MODE // 2026.01.16 @ 14:19:20 Player: CloudSeaKing Result: Destroyed by Striker with Compact Linear Accelerator Performance ------------- Evolutions (7) 3500 Regions Visited (14) 2800 Robots Destroyed (281) 1405 Value Destroyed (12790) 12790 Prototype IDs (47) 940 Alien Tech Used (0) 0 Bonus (8078) 8078 TOTAL SCORE: 29513 Bonus ------- High Alert Combat Kills 3449 Follower Combat Kills 1777 Network Hubs Disabled 200 Aligned with FarCom 300 Built Enhanced Grunts 300 A7 Reached Mainframe 300 Met R17 at Cetus 500 Met R17 at Research 2000 Friendly Fire -748 Cogmind --------- Core Integrity 0/1300 Matter 2/300 Energy 100/100 System Corruption 0% Temperature Cool (0) Movement Core (50) Location -3/Research Parts ------- > --- POWER (2) -------- (None) > --- PROPULSION (6) --- (None) > --- UTILITY (9) ------ (None) > --- WEAPON (4) ------- (None) > --- INVENTORY (5) ---- Light Angular Momentum Engine Target Analyzer Matter Neutralizer Gauss Rifle Coil Gun Peak State ------------ > --- POWER ------------ Antimatter Reactor > --- PROPULSION ------- Centrium Heavy Treads Centrium Heavy Treads Centrium Heavy Treads > --- UTILITY ---------- Huge Storage Unit Advanced Targeting Computer Improved Target Analyzer Weapon Cycler Centrium Medium Armor Plating Centrium Medium Armor Plating Centrium Medium Armor Plating Centrium Medium Armor Plating > --- WEAPON ----------- YOLO Cannon Gauss Rifle KE Penetrator > --- INVENTORY -------- Improved Deuterium Engine Micro Nuclear Core Light Angular Momentum Engine Light Angular Momentum Engine F-cell Engine Medium Treads Medium Treads Medium Treads Improved Medium Treads Improved Medium Treads High-capacity Matter Pod Target Analyzer Improved Reaction Control System Improved Medium Armor Plating Graphene Brace Heavy Plasma Cannon Enhanced Autogun Gauss Rifle Flak Gun Railgun Advanced KE Penetrator Heavy Gauss Cannon Grenade Launcher Great Maul [Rating: 150] Favorites ----------- Power F-cell Engine Engine F-cell Engine Power Core Micro Nuclear Core Reactor Antimatter Reactor Propulsion Light Treads Treads Light Treads Leg Myomer Leg Wheel Centrium Wheel Utility Advanced Targeting Computer Device Weapon Cycler Storage Huge Storage Unit Processor Advanced Targeting Computer Protection Centrium Medium Armor Plating Weapon Enhanced Autogun Energy Gun Medium Laser Energy Cannon Matter Neutralizer Ballistic Gun Enhanced Autogun Ballistic Cannon Magnetic Acceleration Cannon Launcher Micro-nuke Launcher Impact Weapon Great Maul Slashing Weapon Katana Build | -11 -10 -10 -10 -9 -8 -7 -6 -6 -6 -6 -6 -5 -4 -3 ------- Run | Yrd Mat Min Exi Min Mat Fac Fac Ext Cet Arc Hub Fac Fac Res Slots Evolved 14 | . . . . . 4 2 2 . . . . 2 2 2 Power 1 | . . . . . . . . . . . . . . 1 Propulsion 4 | . . . . . 1 1 1 . . . . 1 . . Utility 7 | . . . . . 2 1 1 . . . . 1 1 1 Weapon 2 | . . . . . 1 . . . . . . . 1 . Parts Attached 151 | 7 9 1 . . 37 3 5 22 11 6 4 7 21 18 Power 14 | 1 3 . . . 4 . 1 . . 1 . . 2 2 Engine 11 | 1 3 . . . 4 . 1 . . . . . 1 1 Core 1 | . . . . . . . . . . . . . 1 . Reactor 2 | . . . . . . . . . . 1 . . . 1 Propulsion 41 | 2 2 . . . 10 1 . 11 3 . 2 1 5 4 Treads 34 | 2 2 . . . 10 1 . 9 3 . 2 1 2 2 Leg 6 | . . . . . . . . 2 . . . . 3 1 Wheel 1 | . . . . . . . . . . . . . . 1 Hover . | . . . . . . . . . . . . . . . Flight . | . . . . . . . . . . . . . . . Utility 51 | 2 2 1 . . 12 1 2 5 4 5 . 2 10 5 Device 24 | 1 . . . . 4 . 1 3 1 5 . . 5 4 Storage 6 | 1 2 1 . . 1 . . . . . . . 1 . Processor 2 | . . . . . 1 . . . . . . . 1 . Hackware . | . . . . . . . . . . . . . . . Protection 19 | . . . . . 6 1 1 2 3 . . 2 3 1 Artifact . | . . . . . . . . . . . . . . . Weapon 45 | 2 2 . . . 11 1 2 6 4 . 2 4 4 7 Energy Gun 3 | 1 . . . . 2 . . . . . . . . . Energy Cannon 5 | . . . . . . . . 1 1 . . . 1 2 Ballistic Gun 21 | 1 1 . . . 6 . 2 1 3 . 2 3 2 . Ballistic Cannon 6 | . . . . . . . . 3 . . . . 1 2 Launcher 6 | . . . . . 3 . . . . . . . . 3 Special Weapon . | . . . . . . . . . . . . . . . Impact Weapon 1 | . . . . . . . . 1 . . . . . . Slashing Weapon 3 | . 1 . . . . 1 . . . . . 1 . . Piercing Weapon . | . . . . . . . . . . . . . . . Special Melee Weapon . | . . . . . . . . . . . . . . . Unidentified Prototypes 8 | . . . . . 2 . 2 . 3 . . . . 1 Corrupted Parts 4 | . . . . . . . . 1 3 . . . . . System Corruption 24 | . . . . . . . . 4 20 . . . . . Parts Lost 65 | . 1 . . . 7 . 2 12 1 1 . 1 21 19 Power 6 | . 1 . . . 1 . . . . . . . 2 2 Propulsion 19 | . . . . . 1 . . 6 1 . . . 7 4 Utility 23 | . . . . . 4 . 2 3 . 1 . . 9 4 Weapon 17 | . . . . . 1 . . 3 . . . 1 3 9 Highest Loss Streak 14 | . 1 . . . 3 . 2 6 1 1 . 1 9 14 To Critical Strikes 2 | . . . . . . . . 1 . . . . 1 . Average Backups 20 | 4 10 15 15 16 20 21 21 22 23 22 22 23 22 17 Power 3 | . . 1 1 1 1 2 4 5 5 4 5 5 4 1 Propulsion 2 | 2 2 2 2 2 1 1 . 1 4 5 5 4 4 . Utility 6 | . 4 6 6 6 8 11 9 7 6 6 6 5 5 4 Weapon 7 | . 2 6 6 7 9 5 7 8 7 7 6 8 7 11 Tool/Special . | . . . . . . . . . . . . . . . Unused Backups 46 | . 8 1 . . 15 2 2 4 3 . 1 . . 10 Power 4 | . . . . . . . . 1 1 . . . . 2 Propulsion 6 | . 4 . . . . . . 1 1 . . . . . Utility 12 | . . . . . 5 . 2 . 1 . . . . 4 Weapon 24 | . 4 1 . . 10 2 . 2 . . 1 . . 4 Tool/Special . | . . . . . . . . . . . . . . . Average Slot Usage (%) 90 | . 100 100 100 100 98 99 98 92 86 85 85 80 80 74 Engine 6 | . 14 14 14 14 8 7 6 6 6 2 . . 1 3 Reactor 1 | . . . . . . . . . . 3 6 5 2 1 Treads 23 | . 28 28 28 28 26 29 33 28 20 20 20 16 14 6 Leg 1 | . . . . . . . . 1 . . . . . 8 Device 12 | . 14 14 14 14 9 7 12 15 13 12 13 9 8 13 Storage 7 | . 14 14 14 14 9 7 6 6 6 6 6 5 5 5 Processor 5 | . . . . . 6 7 6 6 6 6 6 5 8 8 Protection 9 | . . . . . 10 14 11 6 12 13 13 16 17 2 Energy Cannon 1 | . . . . . . . . . . . . . 1 8 Ballistic Gun 19 | . 23 28 28 28 25 22 20 19 16 20 18 12 14 3 Peak Build Rating 150 | 7 8 9 11 11 39 46 58 69 111 113 116 140 150 135 Average Rating 68 | 5 7 8 10 11 31 43 53 57 99 112 111 131 131 106 On Entrance 53 | . 7 8 9 11 11 39 46 58 69 111 113 112 123 83 Avg Prop Armor Cover (%) 6 | . . . . . . . . 5 . . . . 4 7 Naked Turns 161 | . . . . . . . . . . . . . . 161 Heaviest Build 178 | 12 28 48 48 48 112 119 124 136 129 127 136 143 152 178 Greatest Support 240 | 40 40 40 40 40 60 88 108 136 190 190 190 240 240 98 Greatest Overweight (x) 11 | . . 1 1 1 2 1 1 6 1 . . . 4 11 Average Overweight (x) . | . . . 1 1 . 1 1 . . . . . . 1 Largest Inventory Capacity 25 | 8 15 20 20 20 25 25 25 25 25 25 25 25 25 25 Average Capacity 22 | 7 11 17 20 20 22 25 25 25 25 25 25 25 25 23 Most Carried 25 | 7 15 15 17 17 25 25 25 25 25 25 25 25 25 24 Average Carried 21 | 4 10 14 16 17 22 24 24 24 24 24 24 24 22 18 Final Capacity 25 | 8 15 20 20 20 25 25 25 25 25 25 25 25 25 5 Final Carried 25 | 7 15 15 17 17 25 25 25 25 25 25 25 25 16 5 Class Distribution -------------------- 45% | Scavenger-Tank 17% | Mutant 14% | Scavenger-Gunner 11% | Gunner 7% | Scavenger-Skirmisher Dominant Class ---------------- Mutant | -10/Materials Mutant | -10/Mines Mutant | -10/Exiles Mutant | -9/Mines Scavenger-Skirmisher | -8/Materials Scavenger-Tank | -7/Factory Gunner | -6/Factory Gunner | -6/Extension Scavenger-Tank | -6/Cetus Scavenger-Tank | -6/Archives Scavenger-Tank | -6/Hub_04(d) Scavenger-Tank | -5/Factory Scavenger-Tank | -4/Factory Scavenger-Gunner | -3/Research Resources | -11 -10 -10 -10 -9 -8 -7 -6 -6 -6 -6 -6 -5 -4 -3 ----------- Run | Yrd Mat Min Exi Min Mat Fac Fac Ext Cet Arc Hub Fac Fac Res Matter Collected 8969 | 203 667 6 . 8 1861 293 324 1851 434 377 281 673 1318 673 Remotely . | . . . . . . . . . . . . . . . Salvage Created 12551 | 27 663 . . . 2395 325 324 2290 227 392 1141 1356 2570 841 Parts 606 | 4 44 . . . 150 26 22 91 7 23 53 52 94 40 Haulers Intercepted 13 | . 2 . . . 5 . . 4 . . 2 . . . Recyclers Shooed 8 | . 1 . . . 1 . 2 2 . . . 1 1 . Parts Field Recycled . | . . . . . . . . . . . . . . . Retrieved Matter . | . . . . . . . . . . . . . . . Parts Self-Destructed . | . . . . . . . . . . . . . . . Prevented . | . . . . . . . . . . . . . . . Parts Restored . | . . . . . . . . . . . . . . . Kills | -11 -10 -10 -10 -9 -8 -7 -6 -6 -6 -6 -6 -5 -4 -3 ------- Run | Yrd Mat Min Exi Min Mat Fac Fac Ext Cet Arc Hub Fac Fac Res Combat Hostiles Destroyed 201 | . 19 . . . 44 6 6 23 4 2 12 20 43 22 Guns 117 | . 19 . . . 32 6 6 22 2 2 4 5 17 2 Cannons 23 | . . . . . . . . 1 1 . 3 6 9 3 AOE 47 | . . . . . 12 . . . . . 3 8 10 14 Classes Destroyed 22 | 1 3 . . . 9 1 . 1 . . 1 2 2 2 Worker 11 | . . . . . 2 1 . 2 . . 3 2 1 . Builder 16 | . . . . . 2 1 1 2 . . 1 2 7 . Tunneler 3 | 1 . . . . 1 . . . . . . . 1 . Hauler 13 | . 2 . . . 5 . . 4 . . 2 . . . Recycler 8 | . . . . . 3 . . 3 . . . 2 . . Carrier 1 | . . . . . . . . . . . . . 1 . Mechanic 2 | . . . . . . . . . . . . 1 1 . Operator 13 | . . . . . 2 2 . 2 . 4 1 . . 2 Watcher 8 | . . . . . 2 . . 1 1 . 3 . 1 . Swarmer 25 | . 9 . . . 10 . . . . . . . . 6 Saboteur 1 | . . . . . . . . . . . . . 1 . Grunt 94 | . 10 . . . 22 2 . 14 1 . 8 9 20 8 Brawler 8 | . . . . . 1 . . . . . . 2 4 1 Duelist 2 | . . . . . . . . . . . . 1 1 . Protector 2 | . . . . . . . . . . . 2 . . . Sentry 16 | . . . . . 8 . 1 4 . 2 . . 1 . Hunter 18 | . . . . . 2 . 3 1 . . 1 4 6 1 Programmer 22 | . . . . . . 4 2 1 . . . 4 10 1 Heavy 1 | . . . . . 1 . . . . . . . . . Behemoth 3 | . . . . . . . . 2 . . 1 . . . Cetus Guard 3 | . . . . . . . . . 3 . . . . . Enhanced Grunt 2 | . . . . . . . . . . 1 1 . . . Striker 4 | . . . . . . . . . . . . . . 4 Executioner 1 | . . . . . . . . . . . . . . 1 Thug 3 | . . . . . . . . . . . 3 . . . Guerrilla 1 | . . . . . . . . 1 . . . . . . Best Kill Streak 9 | 1 6 . . . 6 2 2 3 3 1 8 9 8 6 Combat Bots Only 8 | . 6 . . . 5 1 2 3 2 1 7 8 7 6 Max Kills in Single Turn 5 | 1 1 . . . 4 1 1 1 2 2 4 5 5 3 Gunslinging . | . . . . . . . . . . . . . . . Exploded 5 | . . . . . 3 . . . . . 1 5 2 3 Melee . | . . . . . . . . . . . . . . . Uniques/NPCs Destroyed . | . . . . . . . . . . . . . . . Combat | -11 -10 -10 -10 -9 -8 -7 -6 -6 -6 -6 -6 -5 -4 -3 -------- Run | Yrd Mat Min Exi Min Mat Fac Fac Ext Cet Arc Hub Fac Fac Res Hostile Shots Fired 1240 | . 96 . . . 166 44 67 214 32 6 19 112 339 145 Missed 372 | . 30 . . . 45 12 19 57 12 . 11 36 108 42 Hits 868 | . 66 . . . 121 32 48 157 20 6 8 76 231 103 Melee 15 | . . . . . 2 . . . . . . 3 1 9 Projectile 853 | . 66 . . . 119 32 48 157 20 6 8 73 230 94 AOE 20 | . . . . . . . . 1 . . . . . 19 Critical Strikes 46 | . . . . . 5 1 . 5 2 . . 5 18 10 Actively Blocked 9 | . . . . . . . . . . . . . . 9 Part Disruptions 1 | . . . . . . . . . . . . . 1 . Damage Taken 17477 | . 670 . . . 1991 383 689 2271 320 140 315 1602 4922 4174 Core 2256 | . 117 . . . 97 16 59 218 23 . . 80 313 1333 Absorbed by Shields 419 | . . . . . . . . 227 192 . . . . . Reduced by Siege Mode 5 | . . . . . . . . . . . . . 5 . Regen/Repaired (Parts) 593 | . . . . . 170 141 . . . . . 282 . . Core Remaining (%) 80 | 100 . . . 53 82 97 . . . . 64 92 72 . Volleys Fired 599 | 3 69 . . . 125 19 27 123 22 20 26 37 86 42 Largest 4 | 2 2 . . . 3 3 3 3 3 3 3 3 4 4 Hottest 361 | 70 70 . . . 130 75 78 124 100 95 135 135 161 361 Shots Fired 1645 | 6 138 . . . 366 58 81 355 43 60 70 105 275 88 Gun 1415 | 6 138 . . . 358 58 81 327 24 60 62 75 218 8 Cannon 197 | . . . . . . . . 28 19 . 8 30 57 55 Launcher 33 | . . . . . 8 . . . . . . . . 25 Special . | . . . . . . . . . . . . . . . Kinetic 1471 | 3 116 . . . 340 58 81 349 40 60 62 101 247 14 Thermal 110 | 3 22 . . . . . . 6 3 . 8 4 28 36 Explosive 33 | . . . . . 8 . . . . . . . . 25 Electromagnetic 31 | . . . . . 18 . . . . . . . . 13 Robot Hit Streak 24 | 5 13 . . . 14 13 12 24 17 10 10 9 14 7 Robot Miss Streak 6 | . 5 . . . 6 5 2 4 2 4 3 3 6 4 Penetration Max 1 | . . . . . . . . . . 1 1 1 1 1 Secondary Targets 13 | . 4 . . . 4 . 1 2 . . 2 . . . Max Gunslinging Chain 1 | . 1 . . . 1 . 1 1 . . 1 . . . Shots Hit Robots 1060 | 5 84 . . . 229 40 57 263 29 35 41 72 152 53 Core Hits 573 | 2 39 . . . 117 14 20 113 15 14 44 46 104 45 Critical Kills 29 | . 2 . . . 1 . . 1 1 3 4 4 11 2 Critical Parts Destroyed 23 | . . . . . 2 . . 7 . 3 3 3 4 1 Critical Strikes 63 | . 5 . . . 3 . . 9 1 6 7 10 17 5 Burn 3 | . 3 . . . . . . . . . . . . . Meltdown 13 | . . . . . . . . . 1 . 2 1 7 2 Destroy 38 | . 2 . . . 3 . . 9 . 6 5 5 8 . Blast 5 | . . . . . . . . . . . . 3 2 . Corrupt 2 | . . . . . . . . . . . . . . 2 Smash 2 | . . . . . . . . . . . . 1 . 1 Melee Attacks 32 | . 4 . . . . 1 . 1 3 . 2 1 8 12 Impact 27 | . . . . . . . . 1 3 . 2 1 8 12 Slashing 5 | . 4 . . . . 1 . . . . . . . . Piercing . | . . . . . . . . . . . . . . . Sneak Attacks 1 | . . . . . . . . . . . . 1 . . Combat Hostiles . | . . . . . . . . . . . . . . . Follow-up Attacks . | . . . . . . . . . . . . . . . Damage Inflicted 36251 | 58 752 11 . . 4893 837 968 5026 1266 1018 3265 4177 9275 4705 Guns 17452 | 53 739 . . . 3801 792 953 4558 328 1018 1134 1412 2523 141 Cannons 7263 | . . . . . . . . 387 561 . 680 1141 3214 1280 Explosions 10912 | . . . . . 1019 . . . 377 . 1423 1538 3451 3104 Melee 266 | . . . . . . . . . . . . 86 . 180 Ramming 358 | 5 13 11 . . 73 45 15 81 . . 28 . 87 . Kinetic 19258 | 16 603 . . . 3673 792 953 4945 716 1018 1134 2068 3085 255 Thermal 10964 | 37 136 . . . . . . . 550 . 1437 1802 6020 982 Explosive 4163 | . . . . . 993 . . . . . . 221 . 2949 Electromagnetic 1242 | . . . . . 154 . . . . . 666 . 83 339 Impact 266 | . . . . . . . . . . . . 86 . 180 Slashing . | . . . . . . . . . . . . . . . Piercing . | . . . . . . . . . . . . . . . Highest Corruption 26 | . 1 1 1 1 . 1 2 6 26 26 . 2 11 . Average Corruption 4 | . 1 1 1 1 . 1 1 2 23 16 . 1 4 . Corruption Purged 26 | . . . . . . . . . . 26 . . . . Corruption Blocked . | . . . . . . . . . . . . . . . Effects 218 | . 10 3 4 . . 4 3 59 43 29 . 1 62 . Message Errors 51 | . 4 2 2 . . . 1 11 11 7 . . 13 . Matter Fused 56 | . 1 . 1 . . 3 1 17 10 9 . . 14 . Heat Flow Errors 27 | . 1 1 . . . . 1 9 7 2 . . 6 . Energy Discharges 20 | . 1 . 1 . . . . 6 3 4 . 1 4 . Parts Rejected 1 | . 1 . . . . . . . . . . . . . Parts Fused 4 | . . . . . . . . 2 . 1 . . 1 . Data Loss (minor) 23 | . 1 . . . . . . 7 6 1 . . 8 . Data Loss (major) 13 | . . . . . . . . 1 3 3 . . 6 . Misfires 12 | . 1 . . . . 1 . 3 2 1 . . 4 . Alerts 4 | . . . . . . . . 2 . . . . 2 . Weapon Failures 7 | . . . . . . . . 1 1 1 . . 4 . Overload Shots . | . . . . . . . . . . . . . . . Overflow Damage 995 | . . . . . 26 . . . . . 134 233 487 115 Projectiles 541 | . . . . . . . . . . . 100 123 318 . Explosions 294 | . . . . . 26 . . . . . 34 24 169 41 Melee 160 | . . . . . . . . . . . . 86 . 74 Knockbacks 14 | . . . . . 1 . . 3 1 . . 4 4 1 Impact 6 | . . . . . 1 . . 3 . . . 1 1 . Kinetic 8 | . . . . . . . . . 1 . . 3 3 1 Secondary . | . . . . . . . . . . . . . . . Self-Inflicted Damage 1003 | . . . . . 39 . . . . . 109 208 395 252 Shots 16 | . . . . . 2 . . . . . 1 3 5 5 Rammed 36 | 1 7 2 . . 9 2 3 8 . . 2 . 2 . Targets Rammed 44 | 1 7 2 . . 10 4 4 10 . . 2 . 4 . Kicked 1 | . . . . . . . . . . . . . 1 . Crushed 7 | . . . . . 1 2 1 2 . . . . 1 . Highest Temperature 603 | 40 229 97 . . 468 306 346 344 251 161 28 92 516 603 Average Temperature 99 | 19 68 50 . . 66 93 119 86 105 24 11 24 133 189 Received Heat Transfer 2620 | . 258 . . . 486 105 30 543 8 9 48 204 842 87 Effects 32 | . 1 . . . 1 . 2 1 2 . . . 8 17 Shutdowns 4 | . . . . . . . . . . . . . . 4 Energy Bleed 7 | . . . . . . . 2 . . . . . 2 3 Interference 13 | . 1 . . . . . . 1 2 . . . 3 6 Matter Decay 1 | . . . . . . . . . . . . . 1 . Short Circuit 4 | . . . . . 1 . . . . . . . 1 2 Damage (minor) 1 | . . . . . . . . . . . . . 1 . Damage (core) 2 | . . . . . . . . . . . . . . 2 Siege Activations 1 | . . . . . . . . . . . . . 1 . Total Turns 6 | . . . . . . . . . . . . . 6 . Longest Duration 6 | . . . . . . . . . . . . . 6 . Martial Activations . | . . . . . . . . . . . . . . . Shielding Activations . | . . . . . . . . . . . . . . . Robots Disrupted 1 | . . . . . 1 . . . . . . . . . Combat Hostiles 1 | . . . . . 1 . . . . . . . . . Robots Corrupted 4 | . . . . . . . . . . . 2 1 . 1 Combat Hostiles 1 | . . . . . . . . . . . . . . 1 Parts Fried 9 | . . . . . . . . 1 . . 2 4 2 . Impact Corruptions 6 | . . . . . . . . . . . . 3 1 2 Robots Melted 13 | . . . . . . . . . 1 . 2 1 7 2 Combat Hostiles 13 | . . . . . . . . . 1 . 2 1 7 2 Parts Melted 29 | . 1 . . . . . . . . . 8 3 15 2 Heat Transferred 11490 | 111 629 . . . . . . . 560 . 1363 1880 5991 956 Parts Sabotaged 3 | . . . . . . . . . . . . . 3 . Parts Stolen . | . . . . . . . . . . . . . . . Parts Stripped . | . . . . . . . . . . . . . . . Power Chain Reactions . | . . . . . . . . . . . . . . . Alert | -11 -10 -10 -10 -9 -8 -7 -6 -6 -6 -6 -6 -5 -4 -3 ------- Run | Yrd Mat Min Exi Min Mat Fac Fac Ext Cet Arc Hub Fac Fac Res Maximum Alert Level 4 | . 1 . . . 2 1 . 2 2 1 3 4 4 3 Low Security (%) 50 | 100 77 100 . 100 27 86 100 79 30 86 59 . . . Level 1 12 | . 22 . . . 19 13 . 16 63 13 2 . . . Level 2 21 | . . . . . 52 . . 4 5 . 2 11 36 65 Level 3 8 | . . . . . . . . . . . 35 6 23 34 Level 4 7 | . . . . . . . . . . . . 82 39 . Level 5 . | . . . . . . . . . . . . . . . High Security . | . . . . . . . . . . . . . . . Max Security . | . . . . . . . . . . . . . . . Peak Influence 1523 | 5 254 56 . . 670 301 146 456 416 290 1056 1467 1523 998 Initial 795 | . . 56 . . . 301 37 63 250 148 . 503 705 795 Average 343 | . 133 11 . . 337 95 28 101 248 78 371 1137 919 666 Influence Increases 9769 | 5 554 . . . 1358 310 270 1137 538 264 1365 1258 1720 990 Destroy 0b10 Robot/C 4760 | . 380 . . . 880 120 120 780 280 80 380 420 880 440 Destroy 0b10 Robot/NC 415 | 5 10 . . . 85 20 5 75 10 20 80 40 55 10 Destroy Leader 952 | . 64 . . . 224 50 50 112 20 . 90 80 182 80 Allied During Kill 642 | . . . . . . . . 97 193 82 247 23 . . Successful Hack 398 | . 40 . . . 46 103 50 56 . . 16 44 . 43 Disable Machine 1110 | . . . . . 45 . 45 . 15 75 270 420 165 75 Anti-Garrison Action 150 | . . . . . . . . . . . 150 . . . Destroy Structure 1132 | . . . . . 63 2 . 17 20 7 117 186 408 312 Partial Spotted 15 | . . . . . . . . . . . . . 15 . Lose Combat Pursuer 195 | . 60 . . . 15 15 . . . . 15 45 15 30 Influence Decreases 8824 | 5 409 145 . . 695 895 218 819 614 636 337 845 1646 1560 Entered New Map 2962 | . . 89 . . . 362 41 67 198 224 . 525 736 720 Time Decay 5080 | 5 399 56 . . 625 533 157 560 386 382 317 310 700 650 Lost Part 563 | . 10 . . . 70 . 20 33 10 10 . 10 210 190 Lost Ally 219 | . . . . . . . . 159 20 20 20 . . . Squads Dispatched 56 | . 2 . . . 7 4 4 6 1 . 4 7 14 7 Investigation 15 | . 2 . . . 3 1 1 2 1 . . 1 . 4 Extermination 10 | . . . . . . 3 2 . . . . 1 4 . Reinforcement 19 | . . . . . 3 . 1 4 . . 2 2 4 3 Assault 12 | . . . . . 1 . . . . . 2 3 6 . Garrison . | . . . . . . . . . . . . . . . Intercept . | . . . . . . . . . . . . . . . Searches Triggered . | . . . . . . . . . . . . . . . Construction Impeded 7 | . . . . . . . . 1 . . 2 1 3 . Haulers Reinforced 2 | . . . . . . . . . . . . 1 . 1 Active Scanning Responses . | . . . . . . . . . . . . . . . Cargo Convoy Interrupts . | . . . . . . . . . . . . . . . Stealth | -11 -10 -10 -10 -9 -8 -7 -6 -6 -6 -6 -6 -5 -4 -3 --------- Run | Yrd Mat Min Exi Min Mat Fac Fac Ext Cet Arc Hub Fac Fac Res Distress Signals 26 | . 4 . . . 6 . 1 2 2 . 4 2 1 4 Communications Jammed . | . . . . . . . . . . . . . . . Distress Signals . | . . . . . . . . . . . . . . . Times Spotted 352 | . 38 . . . 67 9 9 41 14 15 28 32 48 51 Peak Tracking Total 9 | . 7 . . . 6 2 3 4 5 2 9 9 6 5 Tactical Retreats 8 | . 1 . . . 1 1 . . . . 1 2 1 1 Traps | -11 -10 -10 -10 -9 -8 -7 -6 -6 -6 -6 -6 -5 -4 -3 ------- Run | Yrd Mat Min Exi Min Mat Fac Fac Ext Cet Arc Hub Fac Fac Res Traps Triggered 10 | . 1 . . . 1 2 . 4 . . 1 . 1 . Indirectly . | . . . . . . . . . . . . . . . Trap Hack Attempts . | . . . . . . . . . . . . . . . Triggered . | . . . . . . . . . . . . . . . Disarmed . | . . . . . . . . . . . . . . . Reprogrammed . | . . . . . . . . . . . . . . . Reused . | . . . . . . . . . . . . . . . Traps Extracted . | . . . . . . . . . . . . . . . Installed . | . . . . . . . . . . . . . . . Triggered . | . . . . . . . . . . . . . . . Machines | -11 -10 -10 -10 -9 -8 -7 -6 -6 -6 -6 -6 -5 -4 -3 ---------- Run | Yrd Mat Min Exi Min Mat Fac Fac Ext Cet Arc Hub Fac Fac Res Machines Disabled 77 | . . . . . 3 . 3 . 3 5 19 28 11 5 Max in Single Turn 11 | . . . . . 1 . 1 . 1 1 6 11 4 2 Garrison Access 2 | . . . . . . . . . . . 1 . . 1 Network Hub 1 | . . . . . . . . . . . 1 . . . Machines Repaired . | . . . . . . . . . . . . . . . Machines Dismantled . | . . . . . . . . . . . . . . . Machines Sabotaged . | . . . . . . . . . . . . . . . Overloaded Fab Kills . | . . . . . . . . . . . . . . . Hacking | -11 -10 -10 -10 -9 -8 -7 -6 -6 -6 -6 -6 -5 -4 -3 --------- Run | Yrd Mat Min Exi Min Mat Fac Fac Ext Cet Arc Hub Fac Fac Res Machines Accessed 72 | . 9 . 5 . 13 9 7 11 2 1 4 2 3 6 Terminals 45 | . 7 . . . 9 6 4 11 2 . 3 . 1 2 Fabricators 4 | . . . . . . 1 1 . . . . . . 2 Repair Stations 5 | . . . . . 1 1 . . . . . 2 . 1 Recycling Units 5 | . 2 . . . 1 . 1 . . . . . 1 . Scanalyzers 5 | . . . . . 2 1 1 . . . . . . 1 Garrison Access 2 | . . . . . . . . . . . 1 . 1 . Total Hacks 238 | . 20 . 50 . 39 33 15 18 5 25 8 8 3 14 Successful 153 | . 12 . 50 . 19 17 6 10 1 25 2 6 . 5 Failed 82 | . 8 . . . 19 15 8 8 4 . 6 2 3 9 Catastrophic 24 | . 1 . . . 3 4 2 2 3 . 3 2 1 3 Database Lockouts 3 | . . . . . 1 1 1 . . . . . . . Manual 66 | . 19 . 1 . 20 13 5 . 1 1 4 . 1 1 Terminals 110 | . 18 . . . 25 27 6 18 5 . 7 . 1 3 Fabricators 14 | . . . . . . 3 4 . . . . . . 7 Repair Stations 18 | . . . . . 5 2 . . . . . 8 . 3 Recycling Units 9 | . 2 . . . 3 . 3 . . . . . 1 . Scanalyzers 10 | . . . . . 6 1 2 . . . . . . 1 Garrison Access 2 | . . . . . . . . . . . 1 . 1 . Terminal Hacks 109 | . 1 . 50 . 6 11 2 10 1 25 2 . . 1 Record 75 | . . . 49 . . . . . 1 25 . . . . Robot Analysis 4 | . 1 . . . 1 1 1 . . . . . . . Prototype ID Bank 9 | . . . . . 3 3 . 3 . . . . . . Open Door 7 | . . . . . . . 1 6 . . . . . . Open DSF 1 | . . . . . . . . . . . . . . 1 Level Access Points 2 | . . . . . . 1 . . . . 1 . . . Branch Access Points 1 | . . . . . . . . . . . 1 . . . Repair Station Index 1 | . . . . . . 1 . . . . . . . . Alert Level 1 | . . . . . . 1 . . . . . . . . Locate Traps 2 | . . . . . 1 . . 1 . . . . . . Maintenance Status 1 | . . . . . . 1 . . . . . . . . Surveillance Status 1 | . . . . . . 1 . . . . . . . . Assault Status 1 | . . . . . . 1 . . . . . . . . Hauler Manifests 2 | . . . . . 1 1 . . . . . . . . Proto ID Catalog 1 | . . . 1 . . . . . . . . . . . Fabricator Hacks 7 | . . . . . . 2 2 . . . . . . 3 Load Schematic 3 | . . . . . . 1 1 . . . . . . 1 Build 4 | . . . . . . 1 1 . . . . . . 2 Repair Station Hacks 13 | . . . . . 4 2 . . . . . 6 . 1 Scan Component 8 | . . . . . 2 1 . . . . . 4 . 1 Repair 5 | . . . . . 2 1 . . . . . 2 . . Recycling Unit Hacks 5 | . 2 . . . 2 . 1 . . . . . . . Report Inventory 3 | . 1 . . . 1 . 1 . . . . . . . Retrieve Matter 1 | . . . . . 1 . . . . . . . . . Retrieve Components 1 | . 1 . . . . . . . . . . . . . Scanalyzer 6 | . . . . . 4 1 1 . . . . . . . Insert Component 4 | . . . . . 2 1 1 . . . . . . . Analyze 2 | . . . . . 2 . . . . . . . . . Garrison Access Hacks . | . . . . . . . . . . . . . . . Unauthorized Hacks 13 | . 9 . . . 3 1 . . . . . . . . Terminals 13 | . 9 . . . 3 1 . . . . . . . . Botnet 8 | . 4 . . . 3 1 . . . . . . . . Skim 5 | . 5 . . . . . . . . . . . . . Fabricators . | . . . . . . . . . . . . . . . Repair Stations . | . . . . . . . . . . . . . . . Recycling Units . | . . . . . . . . . . . . . . . Scanalyzers . | . . . . . . . . . . . . . . . Garrison Access . | . . . . . . . . . . . . . . . Data Cores Recovered 4 | . . . . . 1 1 . 1 . . 1 . . . Used 2 | . . . . . 1 1 . . . . . . . . Hacking Detections 56 | . 8 . . . 11 8 6 9 2 . 4 1 2 5 Full Trace Events 15 | . 4 . . . 3 1 1 2 1 . . 1 . 2 Feedback Events 1 | . 1 . . . . . . . . . . . . . Corruption 1 | . 1 . . . . . . . . . . . . . Feedback Blocked . | . . . . . . . . . . . . . . . Robot Schematics Acquired . | . . . . . . . . . . . . . . . Robots Built . | . . . . . . . . . . . . . . . Authchips . | . . . . . . . . . . . . . . . Time . | . . . . . . . . . . . . . . . Total Robot Build Rating . | . . . . . . . . . . . . . . . Part Schematics Acquired 2 | . . . . . 2 . . . . . . . . . Parts Built 4 | . . . . . . 1 1 . . . . . . 2 Authchips . | . . . . . . . . . . . . . . . Time 269 | . . . . . . 58 58 . . . . . . 153 Total Part Build Rating 24 | . . . . . . 3 3 . . . . . . 18 Part Studies Acquired . | . . . . . . . . . . . . . . . Parts Repaired 5 | . . . . . 2 1 . . . . . 2 . . Time 244 | . . . . . 120 20 . . . . . 104 . . Parts Recycled . | . . . . . . . . . . . . . . . Recycled Matter . | . . . . . . . . . . . . . . . Retrieved Matter . | . . . . . . . . . . . . . . . Retrieved Components 10 | . 10 . . . . . . . . . . . . . Parts Scanalyzed 3 | . . . . . 2 . 1 . . . . . . . Part Schematics Acquired 2 | . . . . . 2 . . . . . . . . . Parts Damaged 1 | . . . . . . . 1 . . . . . . . Bothacking | -11 -10 -10 -10 -9 -8 -7 -6 -6 -6 -6 -6 -5 -4 -3 ------------ Run | Yrd Mat Min Exi Min Mat Fac Fac Ext Cet Arc Hub Fac Fac Res Used RIF Installer . | . . . . . . . . . . . . . . . Robots Hacked . | . . . . . . . . . . . . . . . Non-combat . | . . . . . . . . . . . . . . . Combat . | . . . . . . . . . . . . . . . Robot Hacks Applied . | . . . . . . . . . . . . . . . Relay Couplers Released 5 | . . . . . . . . . . . . . 4 1 Machine Destruction 1 | . . . . . . . . . . . . . . 1 Programmers 4 | . . . . . . . . . . . . . 4 . Fabnet Peak Effective % . | . . . . . . . . . . . . . . . Robots Rewired 3 | . . . . . . . . 3 . . . . . . Allies Hacked . | . . . . . . . . . . . . . . . Hacks Repelled . | . . . . . . . . . . . . . . . Allies | -11 -10 -10 -10 -9 -8 -7 -6 -6 -6 -6 -6 -5 -4 -3 -------- Run | Yrd Mat Min Exi Min Mat Fac Fac Ext Cet Arc Hub Fac Fac Res Total Allies 15 | . . . . . . . . 10 5 . . . . . Largest Group 6 | . . . . . . . . 4 6 5 3 1 . . Highest-Rated Group 639 | . . . . . . . . 159 639 480 288 96 . . Highest-Rated Ally 159 | . . . . . . . . 159 159 96 96 96 . . Total Orders . | . . . . . . . . . . . . . . . Ally Attacks 211 | . . . . . . . . 90 46 21 46 8 . . Total Damage 7521 | . . . . . . . . 2104 1819 778 2142 678 . . Kills 46 | . . . . . . . . 17 11 2 13 3 . . Allies Corrupted . | . . . . . . . . . . . . . . . Allies Melted 1 | . . . . . . . . . . . 1 . . . Intel | -11 -10 -10 -10 -9 -8 -7 -6 -6 -6 -6 -6 -5 -4 -3 ------- Run | Yrd Mat Min Exi Min Mat Fac Fac Ext Cet Arc Hub Fac Fac Res Active Infowar (turns) 4121 | 59 2043 328 1005 216 470 . . . . . . . . . Terrain 440 | . . . . . 440 . . . . . . . . . Seismic 3681 | 59 2043 328 1005 216 30 . . . . . . . . . Robot Analysis Total 4 | . 1 . . . 1 1 1 . . . . . . . Derelict Logs Recovered 2 | . . 1 . 1 . . . . . . . . . . Drone Launches . | . . . . . . . . . . . . . . . Drone Recoveries . | . . . . . . . . . . . . . . . Exploration | -11 -10 -10 -10 -9 -8 -7 -6 -6 -6 -6 -6 -5 -4 -3 ------------- Run | Yrd Mat Min Exi Min Mat Fac Fac Ext Cet Arc Hub Fac Fac Res Turns Passed 23927 | 163 2043 328 1005 216 3439 1737 1200 4310 912 1653 834 695 2994 2398 Spaces Moved 10100 | 86 1117 172 419 91 1316 668 385 1856 497 332 438 335 1405 983 Core 199 | 1 . . . . . . . . . . . . . 198 Treads 9632 | 85 1117 172 419 91 1316 668 385 1846 497 332 438 335 1358 573 Legs 154 | . . . . . . . . 10 . . . . 47 97 Wheels 115 | . . . . . . . . . . . . . . 115 Hover . | . . . . . . . . . . . . . . . Flight . | . . . . . . . . . . . . . . . Fastest Speed 50 | 50 160 160 240 240 160 242 242 160 160 160 160 160 160 50 Average Speed 194 | 158 160 186 240 240 208 242 242 208 162 160 162 160 166 210 Slowest Speed 640 | 160 160 240 240 240 320 243 242 550 240 160 163 160 400 640 Overloaded Moves . | . . . . . . . . . . . . . . . Propulsion Burnouts . | . . . . . . . . . . . . . . . Robots Hopped . | . . . . . . . . . . . . . . . Potential Cave-ins 8 | . . . . . . . . 8 . . . . . . Cave-ins Triggered . | . . . . . . . . . . . . . . . Exploration Rate (%) 45 | 5 99 30 77 21 78 14 9 87 85 98 38 6 19 20 Regions Visited 14 Branch Regions 7 Pre-discovered Areas 2 | . . . 1 1 . . . . . . . . . . Known Exits Taken 2 | . . . . . . 1 . . . . 1 . . . Unknown Exits Taken 12 | 1 1 1 1 1 1 . 1 1 1 1 . 1 1 . Scrap Searched 2 | . . 1 . 1 . . . . . . . . . . Spaces Dug 21 | . . . . . . 1 . 7 . . . . 8 5 Terrain Destroyed 818 | . . . . . 61 1 . 18 20 9 190 76 235 208 Melee 15 | . . . . . . 1 . 1 . . . . 8 5 Projectile 110 | . . . . . 1 . . 17 1 9 15 19 35 13 AOE 692 | . . . . . 60 . . . 19 . 175 57 191 190 Terrain Rammed . | . . . . . . . . . . . . . . . Walls Destroyed . | . . . . . . . . . . . . . . . Machines Disabled . | . . . . . . . . . . . . . . . Actions | -11 -10 -10 -10 -9 -8 -7 -6 -6 -6 -6 -6 -5 -4 -3 --------- Run | Yrd Mat Min Exi Min Mat Fac Fac Ext Cet Arc Hub Fac Fac Res Total 13436 | 103 1252 179 419 90 1862 770 630 2165 579 1419 497 414 1844 1213 Wait 2105 | . 9 . . . 286 58 198 84 8 1059 . 18 262 123 Move 10086 | 85 1116 171 418 90 1315 667 384 1855 496 331 437 334 1404 983 Hop . | . . . . . . . . . . . . . . . Pick Up 138 | 7 20 2 1 . 36 7 6 18 9 . 1 6 15 10 Fast Attach 84 | 7 1 . . . 11 1 3 11 9 5 11 3 12 10 Attach 73 | . 1 . . . 10 2 3 8 3 1 2 4 26 13 Detach 18 | . . . . . 2 . . . 2 . 2 1 6 5 Swap 77 | . 9 1 . . 29 2 . 9 5 1 2 4 12 3 Drop 145 | . 16 3 . . 38 5 5 15 22 2 12 6 9 12 Fire 599 | 3 69 . . . 125 19 27 123 22 20 26 37 86 42 Melee 32 | . 4 . . . . 1 . 1 3 . 2 1 8 12 Ram . | . . . . . . . . . . . . . . . Kick 1 | . . . . . . . . . . . . . 1 . Crush 43 | 1 7 2 . . 10 4 4 10 . . 2 . 3 . Escape Stasis 14 | . . . . . . 4 . 10 . . . . . . Rewire 21 | . . . . . . . . 21 . . . . . . Trap . | . . . . . . . . . . . . . . . Miscellaneous . | . . . . . . . . . . . . . . . Route ------- -11/Scrapyard -10/Materials (discovered 5 exits: [*Mat x3] / [*Min] / [*Sub]) -10/Mines -10/Exiles (discovered 2 exits: [*Min x2]) -9/Mines -8/Materials (discovered 2 exits: *Fac x2) -7/Factory (discovered 4 exits: *Fac x4) -6/Factory -6/Extension (discovered 3 exits: *Fac x2 / *Cet) -6/Cetus (discovered 2 exits: *Fac / *Arc) -6/Archives (discovered 3 exits: *Fac / *Hub x2) -6/Hub_04(d) (discovered 4 exits: *Fac x4) -5/Factory -4/Factory -3/Research History --------- Turn | Location | Event 38 | -11/Scrapyard | Discovered new exit (range 16) 164 | -11/Scrapyard | Entered Materials 317 | -10/Materials | Build established: Mutant 468 | -10/Materials | Discovered new exit (range 16) 871 | -10/Materials | Discovered new exit (range 13) 1281 | -10/Materials | Discovered new exit (range 14) 1611 | -10/Materials | Discovered new exit (range 8) 1649 | -10/Materials | Discovered new exit (range 8) 2207 | -10/Materials | Entered Mines 2234 | -10/Mines | Met a Derelict bent on vengeance 2268 | -10/Mines | Learned Materials terminal intel 2364 | -10/Mines | Found a hidden stash of uninstalled traps 2430 | -10/Mines | Received a Rocket Launcher from a helpful Derelict 2521 | -10/Mines | Deemed a non-threat by the Exiles lab entrance 2523 | -10/Mines | Discovered new exit (range 5) 2535 | -10/Mines | Entered Exiles 2571 | -10/Exiles | Discovered new exit (range 15) 2600 | -10/Exiles | Met 8R-AWN 2641 | -10/Exiles | Met EX-HEX 2723 | -10/Exiles | Met EX-BIN 2773 | -10/Exiles | Aligned with FarCom system 2775 | -10/Exiles | Given EX-Vault access code 2912 | -10/Exiles | Opened EX-Vault 2931 | -10/Exiles | Found YOLO Cannon 2988 | -10/Exiles | Warned to stay clear of 0b10 Research branches 3074 | -10/Exiles | Met EX-DEC 3117 | -10/Exiles | Learned location of Zion (-7) 3257 | -10/Exiles | Visited The Gauntlet 3506 | -10/Exiles | Discovered new exit (range 11) 3540 | -10/Exiles | Left Exiles lab with YOLO Cannon 3540 | -10/Exiles | Entered Mines 3728 | -9/Mines | Discovered new exit (range 10) 3756 | -9/Mines | Entered Materials 3756 | -8/Materials | Evolved 4 slots: Propulsion x1, Utility x2, Weapon x1 3757 | -8/Materials | Loaded intel: 12 terminal locations 4068 | -8/Materials | Build established: Skirmisher 4536 | -8/Materials | Build established: Scavenger-Tank 5153 | -8/Materials | Build established: Scavenger-Skirmisher 5399 | -8/Materials | Central database locked down 5452 | -8/Materials | Discovered new exit (range 16) 6319 | -8/Materials | Repaired Enh. Autogun 6380 | -8/Materials | Repaired Enh. Autogun 6730 | -8/Materials | Lost 3 parts (1p1u1w) 6956 | -8/Materials | First assault squad dispatched 7103 | -8/Materials | Build established: Gunner 7125 | -8/Materials | Discovered new exit (range 8) 7195 | -8/Materials | Entered Factory 7195 | -7/Factory | Evolved 2 slots: Propulsion x1, Utility x1 7296 | -7/Factory | Central database locked down 7483 | -7/Factory | Build established: Scavenger-Tank 7738 | -7/Factory | Identified exit to Factory 8135 | -7/Factory | Repaired Enh. Autogun 8624 | -7/Factory | Fabricated Enh. Autogun (x1) 8802 | -7/Factory | Build established: Tank 8932 | -7/Factory | Entered another Factory area 8932 | -6/Factory | Evolved 2 slots: Propulsion x1, Utility x1 9424 | -6/Factory | Fabricated Enh. Autogun? 9448 | -6/Factory | Build established: Gunner 9831 | -6/Factory | Central database locked down 10077 | -6/Factory | Discovered new exit (range 9) 10132 | -6/Factory | Entered Extension 10213 | -6/Extension | Build established: Scavenger-Gunner 10222 | -6/Extension | Rescued a captive Derelict 10583 | -6/Extension | Rescued a captive Derelict 10754 | -6/Extension | Rescued a captive Derelict 10755 | -6/Extension | Rescued a captive Derelict 11015 | -6/Extension | Build established: Gunner 11068 | -6/Extension | Spotted B-75 Beast 11175 | -6/Extension | Destroyed B-75 Beast 11202 | -6/Extension | Lost 6 parts (2n2u2w) 11990 | -6/Extension | Build established: Scavenger-Gunner 12506 | -6/Extension | Build established: Gunner 12864 | -6/Extension | Rescued a captive Derelict 12874 | -6/Extension | Rescued a captive Derelict 12982 | -6/Extension | Disrupted transfer network 13078 | -6/Extension | Lost 3 allies 13193 | -6/Extension | Build established: Scavenger-Tank 13405 | -6/Extension | Discovered new exit (range 10) 13407 | -6/Extension | Discovered new exit (range 6) 14046 | -6/Extension | Rescued A7 14062 | -6/Extension | Spotted B-75 Beast 14084 | -6/Extension | Destroyed B-75 Beast 14242 | -6/Extension | Discovered new exit (range 3) 14442 | -6/Extension | Entered Cetus 14442 | -6/Cetus | Accompanied by 1 ally (A7) 14447 | -6/Cetus | Acquired a Cetus Manufacturing Module code from A7 14464 | -6/Cetus | Spotted Cetus Guard 14465 | -6/Cetus | Spotted Cetus Guard 14469 | -6/Cetus | Spotted Cetus Guard 14469 | -6/Cetus | Destroyed Cetus Guard 14478 | -6/Cetus | Allies destroyed Cetus Guard 14480 | -6/Cetus | Spotted Cetus Guard 14487 | -6/Cetus | Allies destroyed Cetus Guard 14493 | -6/Cetus | Allies destroyed Cetus Guard 14541 | -6/Cetus | System corruption reached 10% 14725 | -6/Cetus | Started Cetus Manufacturing Module 14750 | -6/Cetus | Manufactured an Enhanced Grunt 14775 | -6/Cetus | Manufactured an Enhanced Grunt 14800 | -6/Cetus | Manufactured an Enhanced Grunt 14825 | -6/Cetus | Manufactured an Enhanced Grunt 14850 | -6/Cetus | Manufactured an Enhanced Grunt 15016 | -6/Cetus | Escorted A7 to Cetus Mainframe 15140 | -6/Cetus | Discovered new exit (range 15) 15176 | -6/Cetus | Spotted Cetus Guard 15176 | -6/Cetus | Spotted Cetus Guard 15176 | -6/Cetus | Spotted Cetus Guard 15177 | -6/Cetus | Spotted Cetus Guard 15179 | -6/Cetus | Destroyed Cetus Guard 15180 | -6/Cetus | Allies destroyed Cetus Guard 15182 | -6/Cetus | Destroyed Cetus Guard 15186 | -6/Cetus | Allies destroyed Cetus Guard 15192 | -6/Cetus | Security sweep announced 15204 | -6/Cetus | Extracted ID and sensor layout for unrecognized location from A7's data core 15215 | -6/Cetus | Discovered new exit (range 16) 15224 | -6/Cetus | Met Revision 17 15354 | -6/Cetus | Entered Archives 15354 | -6/Archives | Accompanied by 5 allies 15451 | -6/Archives | Unable to access archive contents 15459 | -6/Archives | Discovered new exit (range 15) 15477 | -6/Archives | Unable to access archive contents 15502 | -6/Archives | Unable to access archive contents 15507 | -6/Archives | Discovered new exit (range 16) 16230 | -6/Archives | Discovered new exit (range 16) 17007 | -6/Archives | Entered Hub_04(d) 17007 | -6/Hub_04(d) | Accompanied by 3 allies 17379 | -6/Hub_04(d) | Identified exit to Factory 17489 | -6/Hub_04(d) | Allied Derelicts emerged from ambush trap array 17502 | -6/Hub_04(d) | Network Hub disabled 17588 | -6/Hub_04(d) | Destroyed 7 combat bots 17730 | -6/Hub_04(d) | Spotted B-75 Beast 17749 | -6/Hub_04(d) | Destroyed B-75 Beast 17841 | -6/Hub_04(d) | Entered Factory 17841 | -5/Factory | Accompanied by 1 ally 17841 | -5/Factory | Evolved 2 slots: Propulsion x1, Utility x1 18034 | -5/Factory | Repaired Magnetic Acceleration Cannon 18141 | -5/Factory | First assault squad dispatched 18336 | -5/Factory | Destroyed 8 combat bots 18456 | -5/Factory | Repaired Centrium Medium Armor Plating 18470 | -5/Factory | Discovered new exit (range 11) 18536 | -5/Factory | Entered another Factory area 18536 | -4/Factory | Evolved 2 slots: Utility x1, Weapon x1 19036 | -4/Factory | First assault squad dispatched 20359 | -4/Factory | Destroyed 7 combat bots 21017 | -4/Factory | System corruption reached 10% 21300 | -4/Factory | Lost 9 parts (1p4n4u) 21367 | -4/Factory | Lost 5 parts (1n2u2w) 21487 | -4/Factory | Discovered new exit (range 14) 21530 | -4/Factory | Entered Research 21530 | -3/Research | Evolved 2 slots: Power x1, Utility x1 21581 | -3/Research | Spotted B-86 Titan 21584 | -3/Research | Identified exit to DSF 21700 | -3/Research | Build established: Scavenger-Gunner 21739 | -3/Research | Revision forces began assault on 0b10 21741 | -3/Research | Met up with Revision 17++ 22103 | -3/Research | Build established: Scavenger-Tank 22232 | -3/Research | Found Quantum Capacitor 22239 | -3/Research | Research terminal network offline 22577 | -3/Research | Build established: Scavenger-Gunner 22880 | -3/Research | Spotted Executioner 22880 | -3/Research | Spotted Striker 22890 | -3/Research | Destroyed Executioner 22890 | -3/Research | Destroyed Striker 23415 | -3/Research | Spotted Striker 23418 | -3/Research | Spotted Striker 23420 | -3/Research | Destroyed Striker 23455 | -3/Research | Destroyed Striker 23479 | -3/Research | Lost 5 parts (2n1u2w) 23487 | -3/Research | Spotted Striker 23488 | -3/Research | Destroyed Striker 23669 | -3/Research | Core integrity fell below 50% 23697 | -3/Research | Core integrity fell below 20% 23725 | -3/Research | Lost 14 parts (2p2n3u7w) 23895 | -3/Research | Fabricated Enh. Hardcell Cannon (x2) 23925 | -3/Research | Spotted Executioner 23925 | -3/Research | Spotted Striker 23928 | -3/Research | Destroyed by Striker with Compact Linear Accelerator Last Messages --------------- 23739_ Dropped Centrium Wheel. 23740_ Discarded Broken Imp. Target Analyzer. 23740_ Dropped Graphene Brace. 23741_ Dropped Hvy. Plasma Cannon. 23785_ Connecting with Fabricator... 23787_ Acquired Prototype Ballistic Cannon. 23787_ Identified Com. Mass Driver. 23795_ Acquired Imp. Heavy Treads. 23813_ Dropped Com. Mass Driver. 23813_ Dropped Imp. Heavy Treads. 23826_ Connecting with Fabricator... >>Build Building Enh. Hardcell Cannon... ETC: 69 23895_ Fabricator completes Enh. Hardcell Cannon. 23927_ Slug penetrates Wall. 23927_ Penetrated by Slug. [Achievement: 20k Club] [Achievement: Achiever] Map ----- +----------------------------------------------------+ | ????????????????????????????????????????????????? | | ????????????????????????????????????????????????? | | ????????????????????????????????????????????????? | | ????????????????????????????????????????????????? | | ????????????????????????????????????????????????? | | ????????????????????????????????????????????????? | | ????????????????????????????????????????????????? | | ????????????????????????????????????????????????? | | ????????????????????##############??????????????? | | ????????????????????# #??????????????? | | ????????????????????# #??????????????? | | ????????????????????# ##?????????????? | | ????????????????????# """ """ "#?????????????? | | ????????????????????# """ """ "#?????????????? | | ????????????????????# """ """ "#?????????????? | | ????????????????????# """ """ T#?????????????? | | ????????????????????# """ """ "#?????????????? | | ????????????????????# """ """ "#?????????????? | | ????????????????????# "#?????????????? | | ??????###########???# ##?????????????? | | ??????# #???# #??????????????? | | ??????# #???#####;;+####+####???????????? | | ??????# = #???????# #???????????? | | ??????# #???????# #???????????? | | ??????+ #???????# #???????????? | | ??????# #???????#@ #???????????? | | ????#?? ???????#; ^ ###+##+###?????????? | | #???# ??? ?????????#% # #?????????? | | # ### #####+############; #]= #?????????? | | + E # """" #?????????? | | # K # ""F" #?????????? | | # # ""]] #?????????? | | #+## w # #?????????? | | ???# ################## #?????????? | | ???# #????????????????# [ #?????????? | | ???# ####?????????????# ! #?????????? | | ???# ########################?????????? | | ???+ # #???????????????????? | | ???# = + #???????????????????? | | ???# ! # [ ""#???????????????????? | | ???# # ""#???????????????????? | | ???# # """" ""#???????????????????? | | ???# # """" T#???????????????????? | | ???# # """" ""#???????????????????? | | ???# # """" ""#???????????????????? | | ???# ! + ""#???????????????????? | | ???# # #???????????????????? | | ???##+##### # #???????????????????? | | ??????????# # ! #???????????????????? | | ??????????# ### ] #####??????????????????? | +----------------------------------------------------+ Best States ------------- Heat Dissipation 112 Energy Generation 36 Energy Capacity 500 Matter Stores 300 Matter Capacity 500 Sight Range 16 Terrain Scan Range 16 Terrain Scan Density 10 Base Temperature (-) 200 Armor Coverage 900 Weapon Cycling 30 Evasion (%) 50 Targeting Accuracy 8 Target Analysis 6 Recoil Reduction 6 Item Schematics ----------------- Enh. Autogun | -8/Materials | Scanalyzed Hrd. Heavy Armor Plating | -8/Materials | Scanalyzed Robot Schematics ------------------ None Fabricated ------------ Enh. Autogun | x1 | -7/Factory Enh. Autogun | x1 | -6/Factory Enh. Hardcell Cannon | x2 | -3/Research | Preloaded Repaired ---------- Enh. Autogun | 43% | -8/Materials Enh. Autogun | 50% | -8/Materials Enh. Autogun | 11% | -7/Factory Magnetic Acceleration Cannon | 62% | -5/Factory Centrium Medium Armor Plating | 64% | -5/Factory Studied --------- None Alien Tech Used ----------------- None Achievements -------------- 20k Club A New Friend Achiever DIY Cooler Ew, Corruption Hot Stuff I Laugh At Your Crits Immobile And Lovin' It Into The Breach Prison Break Project G-00 Revising The Future Revolutionary Research Rockin' Loadout Challenges ------------ None Game ------ Seed WeaponsHackingDiverter Manual? 0 Play Time 02:30:07 Cumulative 29.7 hours Start 2026.01.16 @ 11:43:49 End 2026.01.16 @ 14:19:20 Sessions 1 Manual Loads 0 Difficulty Rogue Special Mode None Game No. 36 Rogue 36 Adventurer 0 Explorer 0 Win Type - Total 0 Types 0/0/0/0/0/0/0/0/0/0 Lore% 18 Gallery% 27 Achievement% 27 Wizard Run 0 Options --------- Layout 1 ASCII 0 Keyboard 0 Movement Arrows Keybinds 0 Fullscreen 2 Font 32/SmallcapsGlow Map View 50x35 Zoom Use 0% Tactical HUD 1 Map Filters NONE Filters NONE Steam 1 RUN: 57c11278-8d8b-4c47-afff-545c8633f0c2